bitfinex/quotes_BTCUSD_20250522
["timestamp","ask_amount","ask_price","bid_price","bid_amount"]
[1747891602318,0.93975627,111300.0,111290.0,0.00109161]
[1747891602735,0.94836503,111300.0,111290.0,9.161e-05]
[1747891602939,0.95136503,111300.0,111290.0,9.161e-05]
[1747891603147,0.95436503,111300.0,111290.0,0.00109161]
[1747891605090,0.69449655,111300.0,111290.0,0.00109161]
[1747891605766,0.70766304,111300.0,111290.0,0.00109161]
[1747891606598,1.03042704,111300.0,111290.0,0.00109161]
[1747891608033,1.42310704,111300.0,111290.0,0.00109161]
[1747891608245,0.36634073,111300.0,111290.0,0.00109161]
[1747891608716,0.62620921,111300.0,111290.0,0.00109161]
[1747891608927,0.62020921,111300.0,111290.0,9.161e-05]
[1747891609137,0.62620921,111300.0,111290.0,0.00109161]
[1747891609344,0.34319112,111300.0,111290.0,0.00109161]
[1747891609560,0.52016556,111300.0,111290.0,0.00109161]
[1747891609782,0.21083004,111300.0,111290.0,9.161e-05]
[1747891609998,0.21883004,111300.0,111290.0,0.34109161]
[1747891610244,0.21483004,111300.0,111290.0,0.34009161]
[1747891610429,0.23963004,111300.0,111290.0,0.34856597]
[1747891610739,0.24163004,111300.0,111290.0,0.34009161]
[1747891611141,0.22846355,111300.0,111290.0,0.34009161]
[1747891611536,0.22446355,111300.0,111290.0,9.161e-05]
[1747891612514,0.22746355,111300.0,111290.0,0.00109161]
[1747891613287,0.20266355,111300.0,111290.0,0.34109161]
[1747891613516,0.19367859,111300.0,111290.0,0.75537663]
[1747891613735,0.18469451,111300.0,111290.0,0.93508721]
[1747891613942,0.1936785,111300.0,111290.0,1.60202184]
[1747891614145,0.18469451,111300.0,111290.0,1.61999258]
[1747891614356,0.18469451,111300.0,111290.0,1.43129663]
[1747891614564,0.2116469,111300.0,111290.0,1.16223564]
[1747891614786,0.20266371,111300.0,111290.0,0.00109161]
[1747891614990,0.24896371,111300.0,111290.0,0.00109161]
[1747891615197,0.22326371,111300.0,111290.0,9.161e-05]
[1747891616112,0.19966371,111300.0,111290.0,0.00109161]
[1747891616952,0.44022146,111300.0,111290.0,0.00109161]
[1747891617441,0.43822146,111300.0,111290.0,0.00109161]
[1747891618081,0.36151965,111300.0,111290.0,0.00109161]
[1747891619390,0.76787965,111300.0,111290.0,0.00109161]
[1747891619816,1.02774813,111300.0,111290.0,0.00109161]
[1747891620020,0.20312681,111280.0,111260.0,0.14230077]
[1747891620209,0.18872994,111270.0,111260.0,0.40267917]
[1747891621026,0.19769827,111280.0,111270.0,0.0484]
[1747891621223,0.19869827,111280.0,111270.0,0.39781404]
[1747891621472,0.19869819,111280.0,111270.0,0.39781404]
[1747891621939,0.20768412,111280.0,111270.0,0.39781404]
[1747891622173,0.19869819,111280.0,111270.0,0.39781404]
[1747891622411,0.20768412,111280.0,111270.0,0.13794556]
[1747891622630,0.19869819,111280.0,111270.0,0.40006056]
[1747891622742,0.19869819,111280.0,111270.0,0.40081404]
[1747891623203,0.18072681,111280.0,111270.0,0.58954414]
[1747891623448,0.18072681,111280.0,111270.0,0.60751802]
[1747891623572,0.18072681,111280.0,111270.0,0.88602476]
[1747891623814,0.18971258,111280.0,111270.0,0.67932118]
[1747891624025,0.1887125,111280.0,111270.0,0.71622118]
[1747891624218,0.1887125,111280.0,111270.0,0.72520824]
[1747891624421,0.1887125,111280.0,111270.0,0.71622118]
[1747891624822,0.20668444,111280.0,111270.0,0.70723404]
[1747891625089,0.20668436,111280.0,111270.0,1.04723404]
[1747891625285,0.20768436,111280.0,111270.0,1.05023404]
[1747891625488,0.21667053,111280.0,111270.0,0.98863404]
[1747891625905,0.18971242,111280.0,111270.0,1.27256398]
[1747891626112,0.18072681,111280.0,111270.0,1.28155104]
[1747891626561,0.18072681,111280.0,111270.0,1.28155112]
[1747891626727,0.18072681,111280.0,111270.0,1.29952484]
[1747891626963,0.001,111280.0,111270.0,1.29952452]
[1747891627093,0.001,111280.0,111270.0,1.29053794]
[1747891627295,0.001,111280.0,111270.0,1.2995246]
[1747891627489,0.18072681,111280.0,111270.0,1.29952468]
[1747891627707,0.001,111280.0,111270.0,1.30851126]
[1747891628704,0.001,111280.0,111270.0,1.30851078]
[1747891629749,0.001,111280.0,111270.0,1.71491078]
[1747891630701,0.001,111280.0,111270.0,1.75181078]
[1747891632418,0.001,111280.0,111270.0,1.77699759]
[1747891634140,0.18072681,111280.0,111270.0,1.48051761]
[1747891634344,0.001,111280.0,111270.0,1.75902419]
[1747891635161,0.001,111280.0,111270.0,1.39232419]
[1747891635361,0.001,111280.0,111270.0,1.36713738]
[1747891638126,0.001,111280.0,111270.0,1.38993738]
[1747891638344,0.001,111280.0,111270.0,1.39892404]
[1747891639093,0.001,111280.0,111270.0,1.73892404]
[1747891639781,0.001,111280.0,111270.0,1.46041746]
[1747891640001,0.18072681,111280.0,111270.0,1.72993738]
[1747891640401,0.001,111280.0,111270.0,1.72993738]
[1747891640608,0.001,111280.0,111270.0,1.49298778]
[1747891640812,0.001,111280.0,111270.0,1.67273074]
[1747891641189,0.001,111280.0,111270.0,1.66374416]
[1747891641397,0.001,111280.0,111270.0,1.60893746]
[1747891641803,0.18072681,111280.0,111270.0,1.5999508]
[1747891642107,0.18072681,111280.0,111270.0,1.60893754]
[1747891642307,0.18072681,111280.0,111270.0,1.6179242]
[1747891642627,0.18072681,111280.0,111270.0,1.62691078]
[1747891642829,0.18072681,111280.0,111270.0,1.6179242]
[1747891643060,0.18072681,111280.0,111270.0,1.62691078]
[1747891643277,0.18072681,111280.0,111270.0,1.6179242]
[1747891643970,0.22219843,111280.0,111270.0,0.42954556]
[1747891644172,0.25558452,111280.0,111270.0,0.95889404]
[1747891644397,0.24659916,111280.0,111270.0,0.59986848]
[1747891645522,0.25558436,111280.0,111270.0,0.59986848]
[1747891647092,0.26457045,111280.0,111270.0,0.59986848]
[1747891647679,0.26457037,111280.0,111270.0,0.59986848]
[1747891648533,0.25558428,111280.0,111270.0,0.59986848]
[1747891648728,0.24659819,111280.0,111270.0,0.60885554]
[1747891648906,0.25558412,111280.0,111270.0,0.59986848]
[1747891649878,0.001,111280.0,111270.0,1.12902548]
[1747891650084,0.001,111280.0,111270.0,2.28724294]
[1747891650328,0.001,111280.0,111270.0,2.25682194]
[1747891650656,0.001,111280.0,111270.0,2.28203517]
[1747891651259,0.21357548,111310.0,111280.0,0.51971786]
[1747891651463,0.24685907,111310.0,111300.0,0.59986848]
[1747891651781,0.32768497,111310.0,111300.0,0.59986848]
[1747891652405,0.32868497,111310.0,111300.0,0.59986848]
[1747891653043,0.3376688,111310.0,111300.0,0.59986848]
[1747891653587,0.3376688,111310.0,111300.0,0.34]
[1747891653835,0.32868497,111310.0,111300.0,0.59986848]
[1747891654035,0.33168497,111310.0,111300.0,0.60086848]
[1747891654298,0.24985899,111310.0,111300.0,0.60086848]
[1747891654500,0.25884266,111310.0,111300.0,0.60086848]
[1747891654699,0.25884266,111310.0,111300.0,0.78954763]
[1747891654700,0.2408754,111310.0,111300.0,0.78954763]
[1747891654845,0.2408754,111310.0,111300.0,0.6098532]
[1747891655046,0.25285883,111310.0,111300.0,0.6108532]
[1747891655447,0.2438754,111310.0,111300.0,0.6108532]
[1747891655851,0.2438754,111310.0,111300.0,0.60186848]
[1747891656196,0.25285883,111310.0,111300.0,0.60186848]
[1747891656539,0.25285883,111310.0,111300.0,0.6108532]
[1747891656760,0.2438754,111310.0,111300.0,0.61085312]
[1747891656961,0.25285883,111310.0,111300.0,0.6108532]
[1747891657160,0.25285883,111310.0,111300.0,0.6477532]
[1747891657426,0.25285883,111310.0,111300.0,0.63876848]
[1747891658583,0.2438754,111310.0,111300.0,0.82744755]
[1747891658783,0.21957532,111310.0,111300.0,0.82744755]
[1747891659221,0.22855859,111310.0,111300.0,0.82744763]
[1747891659416,0.0309,111310.0,111300.0,0.93496175]
[1747891659598,0.18567837,111310.0,111300.0,0.93496191]
[1747891660048,0.18567837,111310.0,111300.0,0.92597767]
[1747891660350,0.18567837,111310.0,111300.0,0.93496199]
[1747891660503,0.20787837,111310.0,111300.0,0.92597767]
[1747891660709,0.21686164,111310.0,111300.0,0.91699319]
[1747891661013,0.20787837,111310.0,111300.0,0.92597775]
[1747891661725,0.20787837,111310.0,111300.0,0.93496223]
[1747891661927,0.21686156,111310.0,111300.0,0.92597775]
[1747891662062,0.23976156,111310.0,111300.0,1.19545775]
[1747891663280,0.25772834,111310.0,111300.0,0.0389]
[1747891663483,0.32058794,111310.0,111300.0,0.0389]
[1747891663695,0.74417937,111310.0,111300.0,0.002]
[1747891664348,1.14153937,111310.0,111300.0,0.002]
[1747891664556,1.09151435,111310.0,111300.0,0.002]
[1747891666254,0.83999367,111310.0,111300.0,0.002]
[1747891667660,0.44263367,111310.0,111300.0,0.002]
[1747891668745,0.42466641,111310.0,111300.0,0.002]
[1747891669154,0.15518641,111310.0,111300.0,0.002]
[1747891669825,0.32058,111310.0,111300.0,0.60186848]
[1747891670983,0.32058,111310.0,111300.0,0.57567548]
[1747891671200,0.0511,111310.0,111300.0,0.34]
[1747891671422,0.32058,111310.0,111300.0,0.34]
[1747891674486,0.0511,111310.0,111300.0,0.34]
[1747891674709,0.32058,111310.0,111300.0,0.59986848]
[1747891676220,0.0511,111310.0,111300.0,0.59986848]
[1747891676427,0.32058,111310.0,111300.0,0.59986848]
[1747891678304,0.006,111310.0,111300.0,0.59986848]
[1747891679061,0.0299,111310.0,111300.0,0.59986848]
[1747891681333,0.006,111310.0,111300.0,0.59986848]
[1747891681540,0.006,111310.0,111300.0,0.72621404]
[1747891682362,0.003,111310.0,111300.0,0.72621404]
[1747891682561,0.003,111310.0,111300.0,0.71291404]
[1747891682764,0.005,111310.0,111300.0,0.71291404]
[1747891683281,0.002,111310.0,111300.0,0.71291404]
[1747891683475,0.002,111310.0,111300.0,1.0075756]
[1747891683686,0.004,111310.0,111300.0,0.98339404]
[1747891683915,0.004,111310.0,111300.0,0.95309699]
[1747891684141,0.004,111310.0,111300.0,0.96649699]
[1747891684408,0.002,111310.0,111300.0,0.96549699]
[1747891684649,0.004,111310.0,111300.0,0.96649699]
[1747891684873,0.002,111310.0,111300.0,0.96649699]
[1747891685204,0.004,111310.0,111300.0,0.96649699]
[1747891685479,0.004,111310.0,111300.0,0.70662851]
[1747891685707,0.004,111310.0,111300.0,0.96649699]
[1747891686317,0.004,111310.0,111300.0,1.03649699]
[1747891690066,0.004,111310.0,111300.0,1.05929699]
[1747891690418,0.004,111310.0,111300.0,0.81437727]
[1747891690756,0.004,111310.0,111300.0,0.74959404]
[1747891691308,0.004,111310.0,111300.0,0.72679404]
[1747891692499,0.004,111310.0,111300.0,1.06679404]
[1747891692703,0.004,111310.0,111300.0,0.80692556]
[1747891692885,0.004,111310.0,111300.0,1.06679404]
[1747891694761,0.004,111310.0,111300.0,0.80692556]
[1747891694979,0.004,111310.0,111300.0,1.06679404]
[1747891697421,0.004,111310.0,111300.0,1.74868304]
[1747891697638,0.004,111310.0,111300.0,1.61521004]
[1747891698263,0.002,111310.0,111300.0,1.61421004]
[1747891698493,0.046,111330.0,111300.0,1.61421004]
[1747891698710,0.0447,111340.0,111320.0,0.85973696]
[1747891698912,0.0227,111350.0,111330.0,1.25694848]
[1747891699169,0.0447,111350.0,111340.0,0.34]
[1747891699368,0.0445,111360.0,111340.0,0.59986848]
[1747891699630,0.0445,111360.0,111350.0,0.59986848]
[1747891699631,0.0226,111360.0,111350.0,0.59986848]
[1747891699871,0.0445,111370.0,111360.0,0.34]
[1747891700091,0.0445,111370.0,111360.0,0.08954556]
[1747891700313,0.0445,111370.0,111360.0,0.09850012]
[1747891700530,0.04463739,111370.0,111360.0,0.3583686]
[1747891700727,0.04463739,111370.0,111360.0,0.36718525]
[1747891701585,0.04463739,111370.0,111360.0,0.10731677]
[1747891701793,0.04463739,111370.0,111360.0,0.36718525]
[1747891702007,0.02673739,111370.0,111360.0,0.36818525]
[1747891702226,0.05003739,111370.0,111360.0,0.36818525]
[1747891703099,0.05203739,111370.0,111360.0,0.36818525]
[1747891703745,0.00613739,111370.0,111360.0,0.96805373]
[1747891703923,0.00613739,111370.0,111360.0,1.98496073]
[1747891704159,0.00613739,111370.0,111360.0,2.03416073]
[1747891704803,0.00213739,111370.0,111360.0,2.03316073]
[1747891705014,0.0233,111390.0,111370.0,0.34]
[1747891705230,0.0442,111400.0,111380.0,0.74973404]
[1747891705432,0.0442,111400.0,111390.0,0.25986848]
[1747891705642,0.0442,111400.0,111390.0,0.34941404]
[1747891705814,0.0442,111400.0,111390.0,0.3583686]
[1747891706031,0.0442,111400.0,111390.0,0.26882304]
[1747891706829,0.0472,111400.0,111390.0,0.26882304]
[1747891708273,0.0512,111400.0,111390.0,0.26982304]
[1747891709152,0.0512,111400.0,111390.0,0.29675462]
[1747891709366,0.0294,111400.0,111390.0,0.57482641]
[1747891709569,0.007,111400.0,111390.0,0.57482641]
[1747891709779,0.007,111400.0,111390.0,0.91482641]
[1747891709895,0.007,111400.0,111390.0,1.18410641]
[1747891710099,0.007,111400.0,111390.0,1.44397489]
[1747891710303,0.003,111400.0,111390.0,1.47787489]
[1747891710530,0.003,111400.0,111390.0,1.72202989]
[1747891710727,0.23359382,111420.0,111400.0,0.54645334]
[1747891711108,0.23550349,111420.0,111410.0,0.2621122]
[1747891711301,0.24447797,111420.0,111400.0,0.96130465]
[1747891711524,0.17951709,111410.0,111400.0,0.95232864]
[1747891711724,0.21139221,111410.0,111400.0,1.20322096]
[1747891711861,0.22471709,111410.0,111400.0,0.76382789]
[1747891712059,0.22471709,111410.0,111400.0,0.95233759]
[1747891712478,0.23369221,111410.0,111400.0,0.9433611]
[1747891712732,0.22471709,111410.0,111400.0,0.9433611]
[1747891712934,0.22471709,111410.0,111400.0,0.7638278]
[1747891713344,0.22471709,111410.0,111400.0,0.68349253]
[1747891713556,0.22471709,111410.0,111400.0,0.94436101]
[1747891713746,0.22471709,111410.0,111400.0,1.20422949]
[1747891713964,0.22471709,111410.0,111400.0,1.01571979]
[1747891714170,0.22471709,111410.0,111400.0,1.03367269]
[1747891714307,0.22471709,111410.0,111400.0,1.02469628]
[1747891714692,0.22471709,111410.0,111400.0,0.66730575]
[1747891714926,0.24266791,111410.0,111400.0,0.66730575]
[1747891715143,0.24266791,111410.0,111400.0,0.66630575]
[1747891715515,0.24366791,111410.0,111400.0,0.66730575]
[1747891715735,0.24366783,111410.0,111400.0,0.66730575]
[1747891715937,0.24366783,111410.0,111400.0,0.95433759]
[1747891715938,0.22571709,111410.0,111400.0,0.95433759]
[1747891716070,0.0239,111410.0,111400.0,1.23215841]
[1747891716671,0.001,111410.0,111400.0,1.23215841]
[1747891719428,0.001,111410.0,111400.0,1.46523241]
[1747891723211,0.001,111410.0,111400.0,0.94549545]
[1747891723437,0.001,111410.0,111400.0,1.46523241]
[1747891724329,0.001,111410.0,111400.0,1.12523241]
[1747891724681,0.001,111410.0,111400.0,0.92924287]
[1747891725042,0.001,111410.0,111400.0,0.94719594]
[1747891727035,0.001,111410.0,111400.0,0.97049594]
[1747891727288,0.001,111410.0,111400.0,0.98569594]
[1747891727697,0.001,111410.0,111400.0,2.01009594]
[1747891727903,0.00050975,111420.0,111410.0,0.48921216]
[1747891728048,0.00050975,111420.0,111410.0,1.18795772]
[1747891729255,0.00050975,111420.0,111410.0,1.21456414]
[1747891730592,0.00050975,111420.0,111410.0,1.22976414]
[1747891730795,0.00250975,111420.0,111410.0,1.23176414]
[1747891730968,0.00250975,111420.0,111410.0,1.21656414]
[1747891731730,0.00250975,111420.0,111410.0,1.19366414]
[1747891731944,0.02720975,111420.0,111410.0,1.16705772]
[1747891732144,0.00250975,111420.0,111410.0,1.19366414]
[1747891732349,0.00250975,111420.0,111410.0,1.23216414]
[1747891732799,0.00250975,111420.0,111410.0,1.21696414]
[1747891733005,0.00250975,111420.0,111410.0,1.16705772]
[1747891734767,0.00250975,111420.0,111410.0,1.19214557]
[1747891735198,0.00250975,111420.0,111410.0,1.26214557]
[1747891736494,0.00250975,111420.0,111410.0,1.28544557]
[1747891736687,0.00250975,111420.0,111410.0,1.98504557]
[1747891736889,0.0467,111440.0,111430.0,0.54640663]
[1747891737142,0.04685282,111440.0,111430.0,1.449937]
[1747891737344,0.04685282,111440.0,111430.0,1.19006852]
[1747891738359,0.04785282,111440.0,111430.0,1.19006852]
[1747891738829,0.05085282,111440.0,111430.0,1.19106852]
[1747891739945,0.05085282,111440.0,111430.0,1.46456942]
[1747891740153,0.00415282,111440.0,111430.0,1.46456942]
[1747891740333,0.00415282,111440.0,111430.0,1.82353942]
[1747891740972,0.00115282,111440.0,111430.0,1.82253942]
[1747891741143,0.00015282,111440.0,111430.0,1.82253942]
[1747891741355,0.00115282,111440.0,111430.0,1.82253942]
[1747891741675,0.00115282,111440.0,111430.0,2.61196842]
[1747891742287,0.02475282,111440.0,111430.0,2.35209994]
[1747891742567,0.04945282,111440.0,111430.0,2.27187394]
[1747891743205,0.31870956,111440.0,111430.0,0.47360341]
[1747891743411,0.32768259,111440.0,111430.0,1.01158645]
[1747891743615,0.31870956,111440.0,111430.0,1.01160613]
[1747891743821,0.31870956,111440.0,111430.0,1.31754404]
[1747891744024,0.30973661,111440.0,111430.0,1.35165243]
[1747891744224,0.22892159,111440.0,111430.0,1.54908538]
[1747891744777,0.22892159,111440.0,111430.0,1.55805922]
[1747891744979,0.22892159,111440.0,111430.0,1.54908538]
[1747891745190,0.22892159,111440.0,111430.0,1.54011138]
[1747891745395,0.22892159,111440.0,111430.0,1.54908538]
[1747891745609,0.22892159,111440.0,111430.0,1.5580593]
[1747891746543,0.22892159,111440.0,111430.0,1.54908538]
[1747891746756,0.22892159,111440.0,111430.0,1.5580593]
[1747891746955,0.22892159,111440.0,111430.0,1.56703274]
[1747891747123,0.22892159,111440.0,111430.0,1.55805898]
[1747891747322,0.2378943,111440.0,111430.0,1.34267827]
[1747891747528,0.2378943,111440.0,111430.0,1.35165235]
[1747891747768,0.22892159,111440.0,111430.0,1.36062635]
[1747891747967,0.23789438,111440.0,111430.0,1.53113722]
[1747891748169,0.23789438,111440.0,111430.0,1.5311373]
[1747891748369,0.23789438,111440.0,111430.0,1.54011138]
[1747891748571,0.23789438,111440.0,111430.0,1.35165251]
[1747891748758,0.23789438,111440.0,111430.0,1.36062667]
[1747891749331,0.2378943,111440.0,111430.0,1.36062667]
[1747891749583,0.24686717,111440.0,111430.0,1.36062667]
[1747891749727,0.24686717,111440.0,111430.0,1.35165251]
[1747891749929,0.24686717,111440.0,111430.0,1.36060707]
[1747891750135,0.2378943,111440.0,111430.0,1.36062667]
[1747891750335,0.24686717,111440.0,111430.0,1.35165243]
[1747891750732,0.24686717,111440.0,111430.0,1.35165251]
[1747891750922,0.2378943,111440.0,111430.0,1.36062659]
[1747891751105,0.24686725,111440.0,111430.0,1.35165251]
[1747891751245,0.24686725,111440.0,111430.0,1.74633251]
[1747891751852,0.24686717,111440.0,111430.0,1.75530667]
[1747891752277,0.24686717,111440.0,111430.0,1.73735827]
[1747891752478,0.22892159,111440.0,111430.0,1.91684314]
[1747891752689,0.23789438,111440.0,111430.0,1.93479146]
[1747891753131,0.24686733,111440.0,111430.0,1.73735827]
[1747891753335,0.24686733,111440.0,111430.0,1.74633251]
[1747891753571,0.23789438,111440.0,111430.0,1.75530667]
[1747891753781,0.23789438,111440.0,111430.0,1.76428075]
[1747891754119,0.23789438,111440.0,111430.0,1.75530667]
[1747891754507,0.23789438,111440.0,111430.0,1.67492306]
[1747891754703,0.24686725,111440.0,111430.0,1.73735827]
[1747891754934,0.22892159,111440.0,111430.0,1.9258173]
[1747891755132,0.22892159,111440.0,111430.0,1.94376538]
[1747891755328,0.22892159,111440.0,111430.0,1.9527393]
[1747891755617,0.04945282,111440.0,111430.0,1.96171266]
[1747891756217,0.04945282,111440.0,111430.0,1.70184418]
[1747891756435,0.04945282,111440.0,111430.0,1.96171266]
[1747891758665,0.23789438,111440.0,111430.0,1.91684314]
[1747891758866,0.23789438,111440.0,111430.0,1.73735827]
[1747891759247,0.24686741,111440.0,111430.0,1.07351827]
[1747891759454,0.25584044,111440.0,111430.0,1.73735827]
[1747891759639,0.25584036,111440.0,111430.0,1.73735827]
[1747891761153,0.26481355,111440.0,111430.0,1.73735827]
[1747891761379,0.26481347,111440.0,111430.0,1.46823827]
[1747891761587,0.26481347,111440.0,111430.0,1.11882423]
[1747891761588,0.24686821,111440.0,111430.0,1.11882423]
[1747891761989,0.24686821,111440.0,111430.0,1.09369]
[1747891762190,0.24686821,111440.0,111430.0,1.35355848]
[1747891762706,0.24686821,111440.0,111430.0,1.37875875]
[1747891763203,0.24686821,111440.0,111430.0,0.98403875]
[1747891763666,0.23789502,111440.0,111430.0,0.95883848]
[1747891764299,0.23789502,111440.0,111430.0,0.69897]
[1747891764501,0.23789502,111440.0,111430.0,0.95883848]
[1747891764701,0.23789502,111440.0,111430.0,0.69897]
[1747891764815,0.23789502,111440.0,111430.0,0.95883848]
[1747891765224,0.23789502,111440.0,111430.0,0.69897]
[1747891765636,0.23789502,111440.0,111430.0,0.95883848]
[1747891766244,0.22892159,111440.0,111430.0,0.95883848]
[1747891775290,0.22892159,111440.0,111430.0,1.04838404]
[1747891775291,0.23789454,111440.0,111430.0,1.04838404]
[1747891775449,0.25584036,111440.0,111430.0,1.04838404]
[1747891775652,0.26481363,111440.0,111430.0,1.04838404]
[1747891776392,0.27378706,111440.0,111430.0,1.04838404]
[1747891777031,0.26481435,111440.0,111430.0,1.04838404]
[1747891778088,0.2558414,111440.0,111430.0,1.04838404]
[1747891785666,0.2558414,111440.0,111430.0,0.78851556]
[1747891785857,0.2558414,111440.0,111430.0,0.98027296]
[1747891786441,0.2558414,111440.0,111430.0,0.98906198]
[1747891790327,0.24686829,111440.0,111430.0,0.98906198]
[1747891790856,0.23789502,111440.0,111430.0,0.98906198]
[1747891791098,0.23789502,111440.0,111430.0,0.69897]
[1747891791449,0.50705502,111440.0,111430.0,0.69897]
[1747891791899,0.50705502,111440.0,111430.0,0.35897]
[1747891792147,0.50605502,111440.0,111430.0,0.35897]
[1747891792590,0.50905502,111440.0,111430.0,0.5517274]
[1747891792800,0.51005502,111440.0,111430.0,0.5517274]
[1747891792994,0.51005502,111440.0,111430.0,0.35997]
[1747891794021,0.51897003,111440.0,111430.0,0.35997]
[1747891794975,0.51005502,111440.0,111430.0,0.35997]
[1747891802060,0.52343806,111440.0,111430.0,0.35997]
[1747891802308,0.25427806,111440.0,111430.0,0.35997]
[1747891802472,0.52343806,111440.0,111430.0,0.35997]
[1747891804237,0.52343806,111440.0,111430.0,0.69997]
[1747891810410,0.53180559,111440.0,111430.0,0.69997]
[1747891812701,0.52343806,111440.0,111430.0,0.69997]
[1747891812911,0.62750042,111440.0,111430.0,0.35997]
[1747891813235,0.81928187,111440.0,111430.0,0.001]
[1747891813462,0.62752447,111440.0,111430.0,0.001]
[1747891815055,0.63588613,111440.0,111430.0,0.001]
[1747891816844,0.36672613,111440.0,111430.0,0.001]
[1747891817055,0.63592613,111440.0,111430.0,0.001]
[1747891817457,0.72544764,111440.0,111430.0,0.001]
[1747891817956,0.82768353,111440.0,111430.0,0.001]
[1747891818410,0.63592613,111440.0,111430.0,0.001]
[1747891819555,0.82768353,111440.0,111430.0,0.001]
[1747891820056,0.89952584,111440.0,111430.0,0.001]
[1747891820224,0.89116418,111440.0,111430.0,0.001]
[1747891820428,0.20646245,111400.0,111390.0,0.56315905]
[1747891820632,0.24578628,111400.0,111390.0,0.56315905]
[1747891820846,0.24578628,111400.0,111390.0,0.03140165]
[1747891821015,0.17958157,111370.0,111360.0,0.77012207]
[1747891821272,0.17958157,111370.0,111360.0,1.24000253]
[1747891821479,0.17958157,111370.0,111360.0,0.64995087]
[1747891821680,0.18856008,111370.0,111360.0,0.91047882]
[1747891821857,0.18856,111370.0,111360.0,0.91047882]
[1747891822049,0.17958157,111370.0,111360.0,1.25945862]
[1747891822255,0.18856,111370.0,111360.0,1.17947682]
[1747891822462,0.18856,111370.0,111360.0,1.51947682]
[1747891822667,0.18856,111370.0,111360.0,1.17947682]
[1747891822908,0.18856,111370.0,111360.0,1.51947682]
[1747891823259,0.18856,111370.0,111360.0,1.25945862]
[1747891823660,0.18956,111370.0,111360.0,1.26545862]
[1747891823906,0.18956,111370.0,111360.0,1.26245862]
[1747891824234,0.18856,111370.0,111360.0,1.25945862]
[1747891824401,0.18856,111370.0,111360.0,1.2614587]
[1747891824570,0.20751742,111370.0,111360.0,0.98327882]
[1747891824766,0.23231734,111370.0,111360.0,1.22871882]
[1747891824996,0.24129633,111370.0,111360.0,1.13917326]
[1747891825381,0.25451713,111370.0,111360.0,1.13917326]
[1747891825804,0.2455387,111370.0,111360.0,0.34250975]
[1747891826010,0.2455387,111370.0,111360.0,0.60252795]
[1747891826948,0.25451705,111370.0,111360.0,0.60252795]
[1747891827153,0.25451697,111370.0,111360.0,0.60252795]
[1747891827980,0.26349588,111370.0,111360.0,0.34250975]
[1747891828181,0.26349588,111370.0,111360.0,0.60252795]
[1747891828617,0.001,111370.0,111360.0,1.15396913]
[1747891828869,0.18058157,111370.0,111360.0,1.17192817]
[1747891829077,0.18058157,111370.0,111360.0,1.16294869]
[1747891829290,0.18058157,111370.0,111360.0,0.90293049]
[1747891829490,0.18058157,111370.0,111360.0,0.90293057]
[1747891831309,0.18058157,111370.0,111360.0,0.91191013]
[1747891831724,0.18058157,111370.0,111360.0,0.63393273]
[1747891831943,0.18058157,111370.0,111360.0,0.91191013]
[1747891832334,0.18058157,111370.0,111360.0,0.90293057]
[1747891834033,0.18058157,111370.0,111360.0,0.91191013]
[1747891834283,0.18058157,111370.0,111360.0,0.92086469]
[1747891834487,0.18058157,111370.0,111360.0,0.91191013]
[1747891834811,0.18058157,111370.0,111360.0,0.90293057]
[1747891836847,0.18058157,111370.0,111360.0,1.14891057]
[1747891837274,0.21376,111370.0,111360.0,0.95135351]
[1747891837493,0.22273851,111370.0,111360.0,0.96033339]
[1747891837706,0.23171718,111370.0,111360.0,0.95135351]
[1747891837912,0.22273851,111370.0,111360.0,0.96033339]
[1747891838057,0.22273851,111370.0,111360.0,0.70031519]
[1747891838261,0.22273851,111370.0,111360.0,0.96033339]
[1747891838509,0.22273851,111370.0,111360.0,0.95135351]
[1747891839032,0.23171718,111370.0,111360.0,0.95135351]
[1747891839200,0.22273851,111370.0,111360.0,0.96033339]
[1747891839925,0.2317171,111370.0,111360.0,0.95135351]
[1747891840342,0.2317171,111370.0,111360.0,0.96033339]
[1747891841309,0.2317171,111370.0,111360.0,0.95135351]
[1747891841920,0.24723915,111370.0,111360.0,0.33250975]
[1747891842751,0.51651915,111370.0,111360.0,0.002]
[1747891843416,0.51651915,111370.0,111360.0,0.342]
[1747891843618,0.51651915,111370.0,111360.0,0.002]
[1747891843856,0.25573605,111360.0,111350.0,0.6000182]
[1747891844065,0.26471569,111360.0,111350.0,0.68970115]
[1747891845247,0.25673654,111360.0,111350.0,0.43268295]
[1747891845446,0.24775714,111360.0,111350.0,0.69470115]
[1747891845853,0.2387775,111360.0,111350.0,0.00513739]
[1747891846054,0.41470622,111360.0,111350.0,0.00513739]
[1747891846281,0.6962864,111360.0,111350.0,0.00513739]
[1747891846761,0.50422773,111360.0,111350.0,0.00513739]
[1747891847236,0.6962864,111360.0,111350.0,0.00513739]
[1747891847461,0.6952864,111360.0,111350.0,0.00013739]
[1747891847999,0.6972864,111360.0,111350.0,0.00113739]
[1747891848249,0.60776489,111360.0,111350.0,0.00113739]
[1747891848470,0.68502622,111360.0,111350.0,0.00113739]
[1747891848667,0.68302622,111360.0,111350.0,0.00013739]
[1747891848891,0.68602622,111360.0,111350.0,0.00113739]
[1747891849098,0.68902622,111360.0,111350.0,0.00113739]
[1747891849314,0.34786391,111360.0,111350.0,0.00113739]
[1747891849530,0.2437775,111360.0,111350.0,0.00113739]
[1747891849729,0.5130975,111360.0,111350.0,0.34113739]
[1747891851257,0.5130975,111360.0,111350.0,0.00113739]
[1747891852262,0.2437775,111360.0,111350.0,0.00113739]
[1747891857789,0.27340001,111360.0,111350.0,0.00113739]
[1747891857986,0.2437775,111360.0,111350.0,0.00113739]
[1747891858240,0.6079977,111360.0,111350.0,0.00113739]
[1747891859360,0.34786391,111360.0,111350.0,0.00113739]
[1747891859596,0.61722391,111360.0,111350.0,0.00113739]
[1747891861039,0.34786391,111360.0,111350.0,0.00113739]
[1747891861250,0.61722391,111360.0,111350.0,0.00113739]
[1747891863406,0.34786391,111360.0,111350.0,0.00113739]
[1747891863615,0.99382391,111360.0,111350.0,0.00113739]
[1747891866452,0.99813791,111360.0,111350.0,0.00113739]
[1747891874386,0.99213791,111360.0,111350.0,0.00013739]
[1747891874598,0.99513791,111360.0,111350.0,0.00013739]
[1747891874803,0.99813791,111360.0,111350.0,0.00113739]
[1747891875482,0.99713791,111360.0,111350.0,0.00113739]
[1747891876196,0.72777791,111360.0,111350.0,0.00113739]
[1747891876385,0.22279102,111360.0,111350.0,0.61025179]
[1747891876675,0.22482994,111360.0,111350.0,0.60127118]
[1747891876890,0.24992994,111360.0,111350.0,0.60127118]
[1747891877307,0.22482986,111360.0,111350.0,0.60127118]
[1747891877464,0.22482986,111360.0,111350.0,0.60137118]
[1747891878449,0.24125054,111360.0,111350.0,0.60137118]